[Event "98th Caplin Hastings Masters 2024-25"]
[Site "Hastings"]
[Date "2025.01.03"]
[Round "9.23"]
[White "Muir, Andrew J"]
[Black "Malinovskii, Ilia"]
[Result "0-1"]
[ECO "D32"]
[WhiteElo "2214"]
[BlackElo "2003"]
[Annotator "RC"]
[PlyCount "78"]
[EventDate "2024.12.23"]
[EventType "swiss"]
[EventCountry "ENG"]
[SourceTitle "playchess.com"]
[Source "ChessBase"]
[SourceQuality "1"]
[TimeControl "5400+30"]

1. d4 {[%emt 0:00:06]} d5 {[%emt 0:00:05]} 2. c4 {[%emt 0:00:06]} e6 {[%emt 0:00:03]} 3. Nc3 {[%emt 0:00:07]} c5 {[%emt 0:00:06]} 4. cxd5 {[%emt 0:00:13]} cxd4 {[%emt 0:00:05]} 5. Qa4+ {[%emt 0:00:23]} Bd7 {[%emt 0:00:07]} 6. Qxd4 {[%emt 0:00:05]} exd5 {[%emt 0:00:06]} 7. Qxd5 {[%emt 0:00:20]} Nf6 {[%emt 0:00:08]} 8. Qd1 {[%emt 0:00:11]} Bc5 {[%emt 0:00:11]} 9. Nf3 {[%emt 0:00:39]} O-O {[%emt 0:01:15]} 10. e3 {[%emt 0:01:53]} Qe7 {[%emt 0:00:49]} 11. Be2 {[%emt 0:00:26]} Rd8 {[%emt 0:03:33]} 12. O-O {[%emt 0:01:00]} Nc6 {[%emt 0:04:00]} 13. a3 {[%emt 0:02:21]} Bf5 {[%emt 0:02:58]} 14. Qa4 {[%emt 0:01:12]} a6 {[%emt 0:03:04]} 15. Rd1 {[%emt 0:05:35]} Bd6 {[%emt 0:04:00]} 16. b4 {[%emt 0:09:33]} Qe6 {[%emt 0:13:18]} 17. b5 {[%emt 0:02:16]} axb5 {[%emt 0:03:43]} 18. Qxb5 {[%emt 0:00:34]} Ra5 {[%emt 0:14:56]} 19. Qb6 {[%emt 0:12:14]} Nd7 {[%emt 0:04:21]} 20. Qb2 {[%emt 0:00:59]} Nc5 {[%emt 0:06:31]} 21. Nb5 {[%emt 0:01:35]} Na4 {[%emt 0:03:35]} 22. Qa2 {[%emt 0:03:46]} Qxa2 {[%emt 0:02:45]} 23. Rxa2 {[%emt 0:00:14]} Rxb5 {[%emt 0:00:25]} 24. Bxb5 {[%emt 0:01:29]} Nc3 {[%emt 0:01:08]} 25. Rdd2 {[%emt 0:06:02]} Nxb5 {[%emt 0:02:06]} 26. Rab2 {[%emt 0:09:35]} Nxa3 {[%emt 0:01:47]} 27. Rxb7 {[%emt 0:00:07]} Nc4 {[%emt 0:00:42]} 28. Re2 {[%emt 0:05:29]} Be4 {[%emt 0:02:56]} 29. Rb3 {[%emt 0:03:19]} N6a5 {[%emt 0:06:06]} 30. Rb5 {[%emt 0:01:01]} Bc6 {[%emt 0:00:18]} 31. Rb1 {[%emt 0:00:31]} Be4 {[%emt 0:03:07]} 32. Rb5 {[%emt 0:00:10]} Bf8 {[%emt 0:01:08]} 33. Re1 {[%emt 0:07:27]} Nc6 {[%emt 0:01:30]} 34. Bb2 {[%emt 0:03:27]} Nxb2 {[%emt 0:00:21]} 35. Rxb2 {[%emt 0:00:20]} Bxf3 {[%emt 0:00:16]} 36. gxf3 {[%emt 0:00:08]} Ne5 {[%emt 0:00:11]} 37. Kg2 {[%emt 0:02:36]} Nd3 {[%emt 0:00:29]} 38. Rd1 {[%emt 0:01:22]} Nf4+ {[%emt 0:00:08]} 39. exf4 {[%emt 0:00:07]} Rxd1 {[%emt 0:00:06]} 0-1

[Event "98th Caplin Hastings Masters 2024-25"]
[Site "Hastings"]
[Date "2025.01.03"]
[Round "9.25"]
[White "Dewangan, Aayush"]
[Black "Dette, Jan"]
[Result "1-0"]
[ECO "B13"]
[WhiteElo "1878"]
[BlackElo "2102"]
[Annotator "NA RC"]
[PlyCount "61"]
[EventDate "2024.12.23"]
[EventType "swiss"]
[EventCountry "ENG"]
[SourceTitle "playchess.com"]
[Source "ChessBase"]
[SourceQuality "1"]
[TimeControl "5400+30"]

1. e4 {[%emt 0:00:03]} c6 {[%emt 0:00:08]} 2. d4 {[%emt 0:00:04]} d5 {[%emt 0:00:05]} 3. exd5 {[%emt 0:00:03]} cxd5 {[%emt 0:00:05]} 4. Bd3 {[%emt 0:00:04]} Nf6 {[%emt 0:00:09]} 5. h3 {[%emt 0:00:49]} Nc6 {[%emt 0:00:06]} 6. c3 {[%emt 0:00:05]} e5 {[%emt 0:00:04]} 7. dxe5 {[%emt 0:05:03]} Nxe5 {[%emt 0:00:07]} 8. Nf3 {[%emt 0:01:09]} Nxd3+ {[%emt 0:02:46]} 9. Qxd3 {[%emt 0:00:02]} Bd6 {[%emt 0:11:06]} 10. O-O {[%emt 0:02:58]} O-O {[%emt 0:00:47]} 11. Bg5 {[%emt 0:01:20]} Be6 {[%emt 0:00:58]} 12. Nbd2 {[%emt 0:04:41]} h6 {[%emt 0:01:01]} 13. Bxf6 {[%emt 0:02:35]} Qxf6 {[%emt 0:00:08]} 14. Nd4 {[%emt 0:00:41]} a6 {[%emt 0:04:07]} 15. Rfe1 {[%emt 0:04:59]} b5 {[%emt 0:02:59]} 16. b4 {[%emt 0:08:08]} Rac8 {[%emt 0:04:17]} 17. a4 {[%emt 0:05:05]} Bd7 {[%emt 0:01:34]} 18. axb5 {[%emt 0:01:42]} Bxb5 {[%emt 0:00:39]} 19. Nxb5 {[%emt 0:01:50]} axb5 {[%emt 0:00:07]} 20. Qxd5 {[%emt 0:15:09]} Qd8 {[%emt 0:14:13]} 21. Qxb5 {[%emt 0:02:36]} Bxb4 {[%emt 0:04:57]} 22. cxb4 {[%emt 0:01:14]} Qxd2 {[%emt 0:02:18]} 23. Re2 {[%emt 0:02:25]} Qd4 {[%emt 0:00:37]} 24. Rb1 {[%emt 0:00:39]} Rb8 {[%emt 0:00:20]} 25. Qa5 {[%emt 0:00:43]} Qd3 {[%emt 0:00:12]} 26. Reb2 {[%emt 0:00:59]} Rb5 {[%emt 0:00:08]} 27. Qc7 {[%emt 0:01:46]} Rfb8 {[%emt 0:01:00]} 28. Qf4 {[%emt 0:01:41]} R8b6 {[%emt 0:05:00]} 29. Rc1 {[%emt 0:02:50]} Rb7 {[%emt 0:08:23]} 30. Rd2 {[%emt 0:05:53]} g5 {[%emt 0:04:57]} 31. Qf6 {[%emt 0:05:49]} 1-0

[Event "98th Caplin Hastings Masters 2024-25"]
[Site "Hastings"]
[Date "2025.01.03"]
[Round "9.26"]
[White "Kim, Yegeon"]
[Black "Verbin, Valentina"]
[Result "0-1"]
[ECO "B44"]
[WhiteElo "1697"]
[BlackElo "2093"]
[Annotator "NA RC"]
[PlyCount "26"]
[EventDate "2024.12.23"]
[EventType "swiss"]
[EventCountry "ENG"]
[SourceTitle "playchess.com"]
[Source "ChessBase"]
[SourceQuality "1"]
[TimeControl "5400+30"]

1. e4 {[%emt 0:00:01]} c5 {[%emt 0:01:12]} 2. Nf3 {[%emt 0:00:05]} e6 {[%emt 0:00:15]} 3. d4 {[%emt 0:00:05]} cxd4 {[%emt 0:00:27]} 4. Nxd4 {[%emt 0:00:05]} Nf6 {[%emt 0:00:15]} 5. Bd3 {[%emt 0:03:24]} Nc6 {[%emt 0:00:41]} 6. Nxc6 {[%emt 0:04:12]} bxc6 {[%emt 0:00:53]} 7. c4 {[%emt 0:03:21]} e5 {[%emt 0:05:58]} 8. Nc3 {[%emt 0:04:04]} Bc5 {[%emt 0:04:27]} 9. O-O {[%emt 0:01:44]} O-O {[%emt 0:06:13]} 10. Kh1 {[%emt 0:06:58]} d6 {[%emt 0:01:58]} 11. a3 {[%emt 0:12:02]} Ng4 {[%emt 0:04:04]} 12. f3 {[%emt 0:16:56]} Nxh2 {[%emt 0:02:14]} 13. Re1 {[%emt 0:05:19]} Ng4 {[%emt 0:00:48]} 0-1

[Event "98th Caplin Hastings Masters 2024-25"]
[Site "Hastings"]
[Date "2025.01.03"]
[Round "9.27"]
[White "Abrahams, Daniel"]
[Black "Samarasinghe Jude, Ranga"]
[Result "1-0"]
[ECO "A84"]
[WhiteElo "2072"]
[BlackElo "1944"]
[Annotator "NA RC"]
[PlyCount "89"]
[EventDate "2024.12.23"]
[EventType "swiss"]
[EventCountry "ENG"]
[SourceTitle "playchess.com"]
[Source "ChessBase"]
[SourceQuality "1"]
[TimeControl "5400+30"]

1. d4 {[%emt 0:00:02]} e6 {[%emt 0:01:50]} 2. c4 {[%emt 0:00:08]} d5 {[%emt 0:01:13]} 3. cxd5 {[%emt 0:01:39]} exd5 {[%emt 0:00:05]} 4. Nc3 {[%emt 0:00:07]} f5 {[%emt 0:00:16]} 5. Bf4 {[%emt 0:01:13]} c6 {[%emt 0:00:05]} 6. Nf3 {[%emt 0:00:37]} Nf6 {[%emt 0:00:07]} 7. e3 {[%emt 0:00:08]} Bd6 {[%emt 0:00:04]} 8. Bxd6 {[%emt 0:00:40]} Qxd6 {[%emt 0:00:03]} 9. Qc2 {[%emt 0:00:11]} O-O {[%emt 0:00:07]} 10. Bd3 {[%emt 0:00:31]} Ne4 {[%emt 0:00:06]} 11. O-O {[%emt 0:00:23]} Nd7 {[%emt 0:00:26]} 12. Rfc1 {[%emt 0:00:18]} Rf6 {[%emt 0:00:13]} 13. Ne2 {[%emt 0:01:21]} Rh6 {[%emt 0:00:31]} 14. Ng3 {[%emt 0:00:41]} Qf6 {[%emt 0:00:37]} 15. b4 {[%emt 0:01:31]} g5 {[%emt 0:00:13]} 16. b5 {[%emt 0:02:05]} g4 {[%emt 0:00:13]} 17. Nd2 {[%emt 0:00:29]} Qh4 {[%emt 0:00:35]} 18. Ndf1 {[%emt 0:00:15]} Nf8 {[%emt 0:00:07]} 19. bxc6 {[%emt 0:00:56]} bxc6 {[%emt 0:00:06]} 20. Rab1 {[%emt 0:01:06]} Nxg3 {[%emt 0:29:58]} 21. fxg3 {[%emt 0:01:56]} Qg5 {[%emt 0:01:22]} 22. Rb3 {[%emt 0:06:48]} Rf6 {[%emt 0:09:45]} 23. Rcb1 {[%emt 0:03:39]} Qg7 {[%emt 0:01:11]} 24. Rc3 {[%emt 0:02:00]} Qd7 {[%emt 0:01:22]} 25. Qa4 {[%emt 0:04:08]} Qc7 {[%emt 0:02:21]} 26. Ba6 {[%emt 0:04:35]} Nd7 {[%emt 0:00:34]} 27. Nd2 {[%emt 0:01:42]} c5 {[%emt 0:14:32]} 28. Bxc8 {[%emt 0:01:15]} Rxc8 {[%emt 0:00:03]} 29. dxc5 {[%emt 0:00:22]} Rc6 {[%emt 0:00:03]} 30. Rbc1 {[%emt 0:02:52]} Nxc5 {[%emt 0:06:11]} 31. Qc2 {[%emt 0:11:41]} Qe5 {[%emt 0:02:15]} 32. Kh1 {[%emt 0:11:10]} R6c7 {[%emt 0:04:00]} 33. Nb3 {[%emt 0:10:49]} Ne6 {[%emt 0:00:35]} 34. Rxc7 {[%emt 0:00:11]} Rxc7 {[%emt 0:00:07]} 35. Qd2 {[%emt 0:00:09]} Rc4 {[%emt 0:05:13]} 36. Rd1 {[%emt 0:02:38]} Nc5 {[%emt 0:05:57]} 37. Qa5 {[%emt 0:07:57]} Nd3 {[%emt 0:02:20]} 38. Rf1 {[%emt 0:03:59]} Rc7 {[%emt 0:04:07]} 39. Qb5 {[%emt 0:00:36]} Rc3 {[%emt 0:06:47]} 40. Nd4 {[%emt 0:00:39]} Nf2+ {[%emt 0:02:50]} 41. Rxf2 {[%emt 0:01:12]} Rc1+ {[%emt 0:01:29]} 42. Rf1 {[%emt 0:00:07]} Qxe3 {[%emt 0:00:51]} 43. Qxd5+ {[%emt 0:00:08]} Kh8 {[%emt 0:00:36]} 44. Qd8+ {[%emt 0:00:09]} Kg7 {[%emt 0:00:05]} 45. Nxf5+ {[%emt 0:00:05]} 1-0

[Event "98th Caplin Hastings Masters 2024-25"]
[Site "Hastings"]
[Date "2025.01.03"]
[Round "9.28"]
[White "Bharat Kumar, Balahari"]
[Black "Vaidyanathan, Adithya"]
[Result "1-0"]
[ECO "A30"]
[WhiteElo "2063"]
[BlackElo "1904"]
[Annotator "NA RC"]
[PlyCount "95"]
[EventDate "2024.12.23"]
[EventType "swiss"]
[EventCountry "ENG"]
[SourceTitle "playchess.com"]
[Source "ChessBase"]
[SourceQuality "1"]
[TimeControl "5400+30"]

1. b3 {[%emt 0:00:05]} c5 {[%emt 0:00:05]} 2. Bb2 {[%emt 0:00:07]} Nc6 {[%emt 0:00:05]} 3. Nf3 {[%emt 0:00:20]} d6 {[%emt 0:00:06]} 4. c4 {[%emt 0:02:30]} e5 {[%emt 0:00:14]} 5. d3 {[%emt 0:00:24]} g6 {[%emt 0:02:44]} 6. g3 {[%emt 0:02:33]} Bg7 {[%emt 0:00:12]} 7. Bg2 {[%emt 0:00:59]} Nge7 {[%emt 0:01:04]} 8. O-O {[%emt 0:00:26]} O-O {[%emt 0:00:13]} 9. Nc3 {[%emt 0:02:35]} f5 {[%emt 0:00:24]} 10. Nd2 {[%emt 0:01:58]} f4 {[%emt 0:04:23]} 11. a3 {[%emt 0:11:29]} a5 {[%emt 0:05:48]} 12. Nd5 {[%emt 0:18:35]} Nxd5 {[%emt 0:03:37]} 13. cxd5 {[%emt 0:04:07]} Nb8 {[%emt 0:02:08]} 14. Bc3 {[%emt 0:26:00]} Bg4 {[%emt 0:05:52]} 15. h3 {[%emt 0:03:18]} Bd7 {[%emt 0:00:44]} 16. b4 {[%emt 0:02:00]} axb4 {[%emt 0:06:45]} 17. axb4 {[%emt 0:00:22]} Rxa1 {[%emt 0:00:08]} 18. Qxa1 {[%emt 0:05:37]} cxb4 {[%emt 0:10:42]} 19. Bxb4 {[%emt 0:03:45]} fxg3 {[%emt 0:00:42]} 20. Bxd6 {[%emt 0:00:19]} Rxf2 {[%emt 0:00:26]} 21. Qa7 {[%emt 0:09:10]} Bxh3 {[%emt 0:09:57]} 22. Bxh3 {[%emt 0:00:38]} Rxf1+ {[%emt 0:00:08]} 23. Kxf1 {[%emt 0:02:07]} Qxd6 {[%emt 0:00:57]} 24. Be6+ {[%emt 0:00:16]} Kh8 {[%emt 0:00:38]} 25. Ne4 {[%emt 0:01:30]} Qf8+ {[%emt 0:04:18]} 26. Kg2 {[%emt 0:00:07]} b5 {[%emt 0:02:59]} 27. Qb7 {[%emt 0:01:39]} h6 {[%emt 0:12:08]} 28. Qxb5 {[%emt 0:00:21]} Qd8 {[%emt 0:04:03]} 29. Qb7 {[%emt 0:00:34]} Kh7 {[%emt 0:04:06]} 30. Bc8 {[%emt 0:01:05]} Qh4 {[%emt 0:01:35]} 31. Bh3 {[%emt 0:00:16]} Qd8 {[%emt 0:00:35]} 32. d6 {[%emt 0:00:32]} h5 {[%emt 0:02:07]} 33. Qc7 {[%emt 0:00:18]} Qf8 {[%emt 0:00:26]} 34. Bc8 {[%emt 0:00:54]} Qf4 {[%emt 0:04:38]} 35. Qxb8 {[%emt 0:00:20]} Qc1 {[%emt 0:13:03]} 36. Qc7 {[%emt 0:00:40]} Qd1 {[%emt 0:00:00]} 37. Nxg3 {[%emt 0:00:31]} h4 {[%emt 0:00:00]} 38. Ne4 {[%emt 0:00:30]} Qxe2+ {[%emt 0:00:00]} 39. Nf2 {[%emt 0:00:05]} Qe3 {[%emt 0:00:00]} 40. Qe7 {[%emt 0:00:49]} Qg3+ {[%emt 0:00:00]} 41. Kf1 {[%emt 0:00:07]} e4 {[%emt 0:00:00]} 42. dxe4 {[%emt 0:00:41]} Kh6 {[%emt 0:00:00]} 43. d7 {[%emt 0:00:45]} Bd4 {[%emt 0:00:00]} 44. Qf8+ {[%emt 0:00:20]} Bg7 {[%emt 0:00:00]} 45. d8=Q {[%emt 0:00:42]} Bxf8 {[%emt 0:00:00]} 46. Qxf8+ {[%emt 0:00:03]} Kg5 {[%emt 0:00:00]} 47. Nh3+ {[%emt 0:00:36]} Qxh3+ {[%emt 0:00:00]} 48. Bxh3 {[%emt 0:00:00]} 1-0

[Event "98th Caplin Hastings Masters 2024-25"]
[Site "Hastings"]
[Date "2025.01.03"]
[Round "9.29"]
[White "Kolka, David"]
[Black "Kennedy, Craig"]
[Result "1-0"]
[ECO "D02"]
[WhiteElo "2020"]
[BlackElo "1851"]
[Annotator "NA RC"]
[PlyCount "33"]
[EventDate "2024.12.23"]
[EventType "swiss"]
[EventCountry "ENG"]
[SourceTitle "playchess.com"]
[Source "ChessBase"]
[SourceQuality "1"]
[TimeControl "5400+30"]

1. d4 {[%emt 0:06:54]} e6 {[%emt 0:00:05]} 2. Nf3 {[%emt 0:00:19]} d5 {[%emt 0:00:14]} 3. Bf4 {[%emt 0:00:37]} Bd6 {[%emt 0:00:06]} 4. Bg3 {[%emt 0:02:21]} Nf6 {[%emt 0:00:10]} 5. Nbd2 {[%emt 0:00:41]} b6 {[%emt 0:00:13]} 6. e3 {[%emt 0:00:38]} Bb7 {[%emt 0:02:00]} 7. Ne5 {[%emt 0:11:50]} Ne4 {[%emt 0:06:58]} 8. Nxe4 {[%emt 0:04:43]} dxe4 {[%emt 0:00:13]} 9. Bb5+ {[%emt 0:06:16]} c6 {[%emt 0:01:06]} 10. Be2 {[%emt 0:01:15]} O-O {[%emt 0:02:28]} 11. c3 {[%emt 0:09:46]} Qe7 {[%emt 0:00:56]} 12. Qc2 {[%emt 0:02:09]} c5 {[%emt 0:05:38]} 13. dxc5 {[%emt 0:02:03]} Bxc5 {[%emt 0:00:18]} 14. Rd1 {[%emt 0:02:35]} Rd8 {[%emt 0:03:46]} 15. O-O {[%emt 0:00:30]} Nd7 {[%emt 0:01:27]} 16. Nc4 {[%emt 0:01:43]} Qg5 {[%emt 0:04:22]} 17. Bc7 {[%emt 0:00:54]} 1-0

[Event "98th Caplin Hastings Masters 2024-25"]
[Site "Hastings"]
[Date "2025.01.03"]
[Round "9.30"]
[White "Bhatia, Kanishka"]
[Black "Lee, Jungsoo"]
[Result "1-0"]
[ECO "B02"]
[WhiteElo "2018"]
[BlackElo "1705"]
[Annotator "NA RC"]
[PlyCount "51"]
[EventDate "2024.12.23"]
[EventType "swiss"]
[EventCountry "ENG"]
[SourceTitle "playchess.com"]
[Source "ChessBase"]
[SourceQuality "1"]
[TimeControl "5400+30"]

1. e4 {[%emt 0:00:03]} Nf6 {[%emt 0:00:25]} 2. Nc3 {[%emt 0:00:09]} d5 {[%emt 0:00:06]} 3. e5 {[%emt 0:01:02]} Nfd7 {[%emt 0:00:19]} 4. Nxd5 {[%emt 0:00:37]} Nxe5 {[%emt 0:00:24]} 5. Ne3 {[%emt 0:00:39]} c5 {[%emt 0:02:17]} 6. f4 {[%emt 0:01:29]} Nec6 {[%emt 0:02:30]} 7. Nf3 {[%emt 0:00:14]} e6 {[%emt 0:00:38]} 8. g3 {[%emt 0:00:30]} Be7 {[%emt 0:00:43]} 9. Bg2 {[%emt 0:00:36]} g5 {[%emt 0:03:42]} 10. Nxg5 {[%emt 0:02:39]} Bxg5 {[%emt 0:00:23]} 11. fxg5 {[%emt 0:00:05]} Qxg5 {[%emt 0:00:18]} 12. O-O {[%emt 0:01:00]} h5 {[%emt 0:05:38]} 13. d4 {[%emt 0:13:57]} Qe7 {[%emt 0:03:33]} 14. d5 {[%emt 0:02:01]} Ne5 {[%emt 0:00:54]} 15. b3 {[%emt 0:02:21]} h4 {[%emt 0:01:27]} 16. Bb2 {[%emt 0:03:28]} Qg5 {[%emt 0:00:32]} 17. Nc4 {[%emt 0:04:56]} Nxc4 {[%emt 0:06:16]} 18. Bxh8 {[%emt 0:00:44]} Ne3 {[%emt 0:00:31]} 19. Qf3 {[%emt 0:00:46]} Nxf1 {[%emt 0:01:28]} 20. Rxf1 {[%emt 0:00:08]} Qg8 {[%emt 0:00:44]} 21. dxe6 {[%emt 0:00:57]} fxe6 {[%emt 0:01:22]} 22. Qh5+ {[%emt 0:00:35]} Kd8 {[%emt 0:02:07]} 23. Bf6+ {[%emt 0:00:15]} Kc7 {[%emt 0:00:58]} 24. Qxc5+ {[%emt 0:00:32]} Nc6 {[%emt 0:00:30]} 25. Be5+ {[%emt 0:00:22]} Kd8 {[%emt 0:02:41]} 26. Rf8+ {[%emt 1:03:25]} 1-0

[Event "98th Caplin Hastings Masters 2024-25"]
[Site "Hastings"]
[Date "2025.01.03"]
[Round "9.31"]
[White "Sciupokas, Arunas"]
[Black "Boswell, Jacob Connor"]
[Result "0-1"]
[ECO "B30"]
[WhiteElo "1969"]
[BlackElo "2277"]
[Annotator "TA"]
[PlyCount "64"]
[EventDate "2024.12.23"]
[EventType "swiss"]
[EventCountry "ENG"]
[SourceTitle "playchess.com"]
[Source "ChessBase"]
[SourceQuality "1"]
[TimeControl "5400+30"]

{[%evp 9,64,0,8,-12,-10,-12,-6,-14,-8,-19,-12,-16,-11,-33,0,-21,-30,-40,-44,-41,-4,-20,-6,-13,-23,-68,33,-3,69,0,10,-89,-60,-70,-62,-116,-14,-25,-33,-27,0,-69,-23,-22,-16,-66,-66,-181,-184,-150,-190,-198,-189,-199,-171,-223,-228]} 1. e4 c5 {[%emt 0:13:44]} 2. Nf3 {[%emt 0:00:40]} Nc6 {[%emt 0:00:11]} 3. Bb5 {[%emt 0:00:08]} e5 {[%emt 0:00:07]} 4. Bxc6 {[%emt 0:00:11]} dxc6 {[%emt 0:00:10]} 5. d3 {[%emt 0:00:27]} Bd6 {[%emt 0:00:35]} 6. O-O {[%emt 0:00:47]} Ne7 {[%emt 0:00:43]} 7. Nbd2 {[%emt 0:02:13]} Ng6 {[%emt 0:01:11]} 8. Nc4 {[%emt 0:00:34]} Bc7 {[%emt 0:00:40]} 9. Be3 {[%emt 0:09:15]} Qe7 {[%emt 0:01:48]} 10. a4 {[%emt 0:02:40]} O-O {[%emt 0:02:28]} 11. Qe1 {[%emt 0:13:30]} Nf4 {[%emt 0:10:28]} 12. Bxf4 {[%emt 0:05:41]} exf4 {[%emt 0:00:06]} 13. Qc3 {[%emt 0:01:02]} Bg4 {[%emt 0:05:31]} 14. Ncd2 {[%emt 0:03:49]} Rad8 {[%emt 0:05:11]} 15. Rfe1 {[%emt 0:01:15]} Rfe8 {[%emt 0:03:11]} 16. e5 {[%emt 0:06:43]} Rd5 {[%emt 0:09:02][%cal Og7g5]} 17. Re4 {[%emt 0:12:52]} Bxe5 {[%emt 0:15:16]} ({Black should play} 17... g5 $1 $15 18. Qb3 b6 (18... Bxe5 $2 19. c4 $18)) 18. Rae1 {[%emt 0:00:43]} f6 {[%emt 0:01:37]} (18... Bxc3 $11 19. Rxe7 Rxe7 20. Rxe7 Kf8 21. Rxb7 Bxd2 22. Nxd2 Bd1) 19. Qb3 {[%emt 0:03:51]} (19. Nxe5 $14 Rxe5 20. Rxe5 fxe5 21. Nc4) 19... Qf7 {[%emt 0:04:10]} 20. c4 {[%emt 0:03:33]} (20. Nxe5 $11 Rdxe5 21. Rxe5 Rxe5 22. Rxe5 Qxb3 23. Nxb3 fxe5 24. f3) 20... Rdd8 {[%emt 0:03:30]} 21. Nxe5 {[%emt 0:09:23]} fxe5 {[%emt 0:00:39]} 22. Qc3 {[%emt 0:05:20]} (22. Rxe5 $15 Rxe5 23. Rxe5) 22... Bf5 {[%emt 0:03:35] Black is more active.} (22... Rd4 $17 {Hoping for ...Bf5.} 23. Nb3 (23. Rxe5 Rxe5 24. Rxe5 Qd7 $17) 23... Rxe4 24. Rxe4 Qe7) 23. Rxe5 $11 {[%emt 0:00:33]} Rxe5 {[%emt 0:00:34]} 24. Qxe5 {[%emt 0:00:10]} Bxd3 {[%emt 0:04:59]} 25. Nf3 {[%emt 0:01:01]} (25. Qxc5 $11 Qf6 26. Qb4) 25... Bxc4 {[%emt 0:03:19]} (25... b6 $15 26. b3 Bc2) 26. Qxc5 {[%emt 0:00:40][%cal Of3g5] and Ng5! would now be decisive} Bd5 {[%emt 0:01:31]} 27. Qe7 {[%emt 0:02:19]} ({White should play} 27. Ne5 $11 Qc7 28. Qxa7) 27... Rd7 $15 {[%emt 0:05:16]} 28. Qe8+ {[%emt 0:02:06]} (28. Qe2 $15 Qh5 29. Qd2) 28... Qxe8 $19 {[%emt 0:00:14]} 29. Rxe8+ {[%emt 0:00:01]} Kf7 {[%emt 0:00:02]} 30. Rb8 {[%emt 0:01:21]} Bxf3 {[%emt 0:01:35]} 31. gxf3 {[%emt 0:00:02]} Ke6 {[%emt 0:00:15]} 32. Rf8 {[%emt 0:01:35]} (32. Re8+ {was called for.} Kd5 33. Re4) 32... Rd4 {[%emt 0:00:56]} 0-1

[Event "98th Caplin Hastings Masters 2024-25"]
[Site "Hastings"]
[Date "2025.01.03"]
[Round "9.33"]
[White "Steiners, Emils"]
[Black "Hu, Junyan"]
[Result "1-0"]
[ECO "E49"]
[WhiteElo "2209"]
[BlackElo "1933"]
[Annotator "RC"]
[PlyCount "95"]
[EventDate "2024.12.23"]
[EventType "swiss"]
[EventCountry "ENG"]
[SourceTitle "playchess.com"]
[Source "ChessBase"]
[SourceQuality "1"]
[TimeControl "5400+30"]

1. d4 {[%emt 0:00:08]} Nf6 {[%emt 0:00:30]} 2. c4 {[%emt 0:00:15]} e6 {[%emt 0:01:10]} 3. Nc3 {[%emt 0:00:15]} Bb4 {[%emt 0:00:06]} 4. e3 {[%emt 0:00:21]} O-O {[%emt 0:00:09]} 5. Bd3 {[%emt 0:00:14]} d5 {[%emt 0:00:51]} 6. a3 {[%emt 0:00:52]} Bxc3+ {[%emt 0:00:34]} 7. bxc3 {[%emt 0:00:03]} dxc4 {[%emt 0:00:08]} 8. Bxc4 {[%emt 0:00:11]} c5 {[%emt 0:00:08]} 9. Ne2 {[%emt 0:00:35]} Qc7 {[%emt 0:00:20]} 10. Bd3 {[%emt 0:00:11]} Nc6 {[%emt 0:01:45]} 11. O-O {[%emt 0:03:55]} e5 {[%emt 0:00:49]} 12. e4 {[%emt 0:03:51]} cxd4 {[%emt 0:01:29]} 13. cxd4 {[%emt 0:00:20]} Nxd4 {[%emt 0:01:49]} 14. Nxd4 {[%emt 0:01:13]} exd4 {[%emt 1:27:42]} 15. h3 {[%emt 0:05:10]} b6 {[%emt 0:00:00]} 16. Bg5 {[%emt 0:15:47]} Nd7 {[%emt 0:00:00]} 17. f4 {[%emt 0:05:46]} Nc5 {[%emt 0:00:00]} 18. Rc1 {[%emt 0:03:25]} Bb7 {[%emt 0:00:00]} 19. Rc2 {[%emt 0:17:17]} Qd7 {[%emt 0:00:00]} 20. Re1 {[%emt 0:04:24]} Rac8 {[%emt 0:00:00]} 21. Rd2 {[%emt 0:03:08]} Nxd3 {[%emt 0:00:00]} 22. Rxd3 {[%emt 0:00:25]} f6 {[%emt 0:00:00]} 23. Rxd4 {[%emt 0:06:05]} Qc7 {[%emt 0:00:00]} 24. Bh4 {[%emt 0:01:20]} Rcd8 {[%emt 0:00:00]} 25. Rxd8 {[%emt 0:06:53]} Rxd8 {[%emt 0:00:00]} 26. Qg4 {[%emt 0:01:00]} Qf7 {[%emt 0:00:00]} 27. e5 {[%emt 0:06:33]} Rd2 {[%emt 0:00:00]} 28. e6 {[%emt 0:01:56]} Qe8 {[%emt 0:00:00]} 29. Bf2 {[%emt 0:01:10]} Qe7 {[%emt 0:00:00]} 30. f5 {[%emt 0:01:34]} b5 {[%emt 0:00:00]} 31. Qf4 {[%emt 0:02:45]} Rd8 {[%emt 0:00:00]} 32. Rb1 {[%emt 0:02:46]} a6 {[%emt 0:00:00]} 33. Re1 {[%emt 0:02:56]} Bd5 {[%emt 0:00:00]} 34. Bb6 {[%emt 0:01:48]} Re8 {[%emt 0:00:00]} 35. Qg3 {[%emt 0:02:07]} Qb7 {[%emt 0:00:00]} 36. Bd4 {[%emt 0:00:26]} Kh8 {[%emt 0:00:00]} 37. h4 {[%emt 0:00:33]} Qe7 {[%emt 0:00:00]} 38. h5 {[%emt 0:00:37]} Rg8 {[%emt 0:00:00]} 39. Rc1 {[%emt 0:00:32]} Bc4 {[%emt 0:00:00]} 40. h6 {[%emt 0:01:02]} Rd8 {[%emt 0:00:00]} 41. hxg7+ {[%emt 0:00:22]} Kg8 {[%emt 0:00:00]} 42. Qh4 {[%emt 0:00:41]} Kxg7 {[%emt 0:00:00]} 43. Rc3 {[%emt 0:00:02]} Rf8 {[%emt 0:00:00]} 44. Rh3 {[%emt 0:00:35]} Kh8 {[%emt 0:00:00]} 45. Kh1 {[%emt 0:00:05]} Qg7 {[%emt 0:00:00]} 46. e7 {[%emt 0:00:37]} Qxe7 {[%emt 0:00:00]} 47. Bc5 {[%emt 0:00:07]} Qf7 {[%emt 0:00:00]} 48. Bxf8 {[%emt 0:00:06]} 1-0